[Event "Early-Titled-Tuesday-Blitz-March-05-2024"]
[Site "Chess.com"]
[Date "2024.03.05"]
[Round "2"]
[White "verrbaa"]
[Black "Kapitan_Bayan"]
[Result "1-0"]
[WhiteElo "2510"]
[BlackElo "2286"]
[TimeControl "180+1"]
[EndTime "8:19:13 PST"]
[Termination "verrbaa won on time"]

1. e4 {[%clk 0:03:00.9]} 1... c5 {[%clk 0:03:00]} 2. Nf3 {[%clk 0:02:56.6]} 2...
d6 {[%clk 0:03:00.2]} 3. d4 {[%clk 0:02:56.8]} 3... cxd4 {[%clk 0:03:00.7]} 4.
Nxd4 {[%clk 0:02:57.7]} 4... Nf6 {[%clk 0:03:01.3]} 5. Nc3 {[%clk 0:02:57.2]}
5... a6 {[%clk 0:03:01.8]} 6. Be2 {[%clk 0:02:48.2]} 6... e5 {[%clk 0:03:00.9]}
7. Nf3 {[%clk 0:02:44.8]} 7... Be6 {[%clk 0:03:00]} 8. Ng5 {[%clk 0:02:44.3]}
8... Be7 {[%clk 0:02:58.4]} 9. O-O {[%clk 0:02:38.5]} 9... h6 {[%clk 0:02:58.1]}
10. Nxe6 {[%clk 0:02:38]} 10... fxe6 {[%clk 0:02:57.9]} 11. Bh5+ {[%clk
0:02:35.7]} 11... Kd7 {[%clk 0:02:50.6]} 12. f4 {[%clk 0:02:34]} 12... Qb6+
{[%clk 0:02:44.6]} 13. Kh1 {[%clk 0:02:33.3]} 13... Nc6 {[%clk 0:02:44]} 14.
fxe5 {[%clk 0:01:58.8]} 14... Nxe5 {[%clk 0:02:43.5]} 15. Bf4 {[%clk 0:01:56.1]}
15... Kc7 {[%clk 0:02:42.9]} 16. a4 {[%clk 0:01:21.2]} 16... Rad8 {[%clk
0:02:19.2]} 17. a5 {[%clk 0:01:19.8]} 17... Qc6 {[%clk 0:02:15.3]} 18. Bf3
{[%clk 0:01:16]} 18... g5 {[%clk 0:02:12.8]} 19. Be3 {[%clk 0:01:11.6]} 19... g4
{[%clk 0:01:57.1]} 20. Bb6+ {[%clk 0:01:10.6]} 20... Kc8 {[%clk 0:01:56.7]} 21.
Be2 {[%clk 0:01:00.4]} 21... Nxe4 {[%clk 0:01:42.2]} 22. Nxe4 {[%clk 0:00:58.5]}
22... Qxe4 {[%clk 0:01:41.2]} 23. Bxd8 {[%clk 0:00:58.8]} 23... Rxd8 {[%clk
0:01:39.1]} 24. Ra3 {[%clk 0:00:58.7]} 24... d5 {[%clk 0:01:33.2]} 25. Bd3
{[%clk 0:00:39.7]} 25... Nxd3 {[%clk 0:01:24.2]} 26. cxd3 {[%clk 0:00:39.5]}
26... Qe5 {[%clk 0:01:21.5]} 27. Rc3+ {[%clk 0:00:39.1]} 27... Kb8 {[%clk
0:01:21.2]} 28. Qxg4 {[%clk 0:00:35]} 28... Bd6 {[%clk 0:01:17.7]} 29. g3 {[%clk
0:00:31.9]} 29... d4 {[%clk 0:01:13.7]} 30. Rcc1 {[%clk 0:00:29.3]} 30... Qxa5
{[%clk 0:01:09.5]} 31. Rf2 {[%clk 0:00:23.4]} 31... Qd5+ {[%clk 0:01:08.9]} 32.
Kg1 {[%clk 0:00:21]} 32... e5 {[%clk 0:01:05.4]} 33. Qg6 {[%clk 0:00:16.3]}
33... Rg8 {[%clk 0:00:51]} 34. Qf7 {[%clk 0:00:15.5]} 34... Qxf7 {[%clk
0:00:49.9]} 35. Rxf7 {[%clk 0:00:16.4]} 35... h5 {[%clk 0:00:44.9]} 36. Kf2
{[%clk 0:00:16.4]} 36... h4 {[%clk 0:00:42.9]} 37. gxh4 {[%clk 0:00:16.3]} 37...
Rh8 {[%clk 0:00:42]} 38. Rg1 {[%clk 0:00:07]} 38... Rxh4 {[%clk 0:00:27.8]} 39.
Rd7 {[%clk 0:00:06.9]} 39... Bc5 {[%clk 0:00:20.4]} 40. Rgg7 {[%clk 0:00:05.3]}
40... Rxh2+ {[%clk 0:00:17.3]} 41. Kg3 {[%clk 0:00:05.3]} 41... Rxb2 {[%clk
0:00:16]} 42. Rg8+ {[%clk 0:00:03]} 42... Ka7 {[%clk 0:00:15.8]} 43. Kf3 {[%clk
0:00:03.4]} 43... Rb3 {[%clk 0:00:13]} 44. Ke4 {[%clk 0:00:03.5]} 44... Bb6
{[%clk 0:00:11.2]} 45. Rgg7 {[%clk 0:00:02.6]} 45... Bc5 {[%clk 0:00:09.2]} 46.
Rg5 {[%clk 0:00:02.7]} 46... Rb2 {[%clk 0:00:04.4]} 47. Rxe5 {[%clk 0:00:02.1]}
47... Re2+ {[%clk 0:00:04.4]} 48. Kd5 {[%clk 0:00:02.8]} 48... Rxe5+ {[%clk
0:00:03.5]} 49. Kxe5 {[%clk 0:00:03.7]} 49... Bb4 {[%clk 0:00:03.3]} 50. Kxd4
{[%clk 0:00:03.3]} 50... a5 {[%clk 0:00:02.1]} 51. Kc4 {[%clk 0:00:03.3]} 1-0

[Event "Early-Titled-Tuesday-Blitz-March-05-2024"]
[Site "Chess.com"]
[Date "2024.03.05"]
[Round "2"]
[White "GMKrikor"]
[Black "jaskol95"]
[Result "1-0"]
[WhiteElo "2880"]
[BlackElo "2579"]
[TimeControl "180+1"]
[EndTime "8:19:14 PST"]
[Termination "GMKrikor won by resignation"]

1. Nf3 {[%clk 0:03:00.9]} 1... d5 {[%clk 0:02:58.8]} 2. c4 {[%clk 0:03:00.5]}
2... c6 {[%clk 0:02:58.6]} 3. d4 {[%clk 0:02:59.9]} 3... Nf6 {[%clk 0:02:58.2]}
4. Nc3 {[%clk 0:03:00.7]} 4... a6 {[%clk 0:02:58.8]} 5. c5 {[%clk 0:02:58.5]}
5... Bf5 {[%clk 0:02:46]} 6. Qb3 {[%clk 0:02:52]} 6... Ra7 {[%clk 0:02:45.3]} 7.
Bf4 {[%clk 0:02:48.4]} 7... Nbd7 {[%clk 0:02:40.3]} 8. h3 {[%clk 0:02:48]} 8...
h6 {[%clk 0:02:39]} 9. e3 {[%clk 0:02:45.5]} 9... e6 {[%clk 0:02:39.2]} 10. Be2
{[%clk 0:02:45.5]} 10... Be7 {[%clk 0:02:39.2]} 11. O-O {[%clk 0:02:45.5]} 11...
O-O {[%clk 0:02:39.1]} 12. Rac1 {[%clk 0:02:37.6]} 12... Ne4 {[%clk 0:02:31.3]}
13. Nxe4 {[%clk 0:02:27.2]} 13... Bxe4 {[%clk 0:02:30.7]} 14. Nd2 {[%clk
0:02:19.9]} 14... Bh7 {[%clk 0:02:27.1]} 15. Bg3 {[%clk 0:02:20.1]} 15... Bf6
{[%clk 0:01:56.6]} 16. f4 {[%clk 0:02:19.1]} 16... Qa5 {[%clk 0:01:49.1]} 17.
Rfd1 {[%clk 0:02:13.7]} 17... Be7 {[%clk 0:01:44.6]} 18. Bd3 {[%clk 0:02:09.5]}
18... Bxd3 {[%clk 0:01:42.1]} 19. Qxd3 {[%clk 0:02:10.4]} 19... Re8 {[%clk
0:01:25.7]} 20. a3 {[%clk 0:02:09.9]} 20... f6 {[%clk 0:01:21.9]} 21. e4 {[%clk
0:02:04.3]} 21... Nf8 {[%clk 0:01:15.3]} 22. f5 {[%clk 0:01:57.6]} 22... Qd8
{[%clk 0:01:09.4]} 23. Qf3 {[%clk 0:01:39.8]} 23... Qd7 {[%clk 0:01:02.8]} 24.
exd5 {[%clk 0:01:01.4]} 24... exd5 {[%clk 0:00:45.7]} 25. Re1 {[%clk 0:00:54.7]}
25... Raa8 {[%clk 0:00:37.7]} 26. Re3 {[%clk 0:00:50.3]} 26... Bd8 {[%clk
0:00:31.6]} 27. Rce1 {[%clk 0:00:49.8]} 27... Rxe3 {[%clk 0:00:28.2]} 28. Rxe3
{[%clk 0:00:48.3]} 28... Bc7 {[%clk 0:00:28.4]} 29. Bxc7 {[%clk 0:00:45]} 29...
Qxc7 {[%clk 0:00:28.9]} 30. g3 {[%clk 0:00:36.9]} 30... Qd7 {[%clk 0:00:26.1]}
31. g4 {[%clk 0:00:31.3]} 31... Re8 {[%clk 0:00:26]} 32. Kg2 {[%clk 0:00:31.6]}
32... Kf7 {[%clk 0:00:24.8]} 33. Nf1 {[%clk 0:00:30.1]} 33... Rxe3 {[%clk
0:00:24.7]} 34. Qxe3 {[%clk 0:00:31]} 34... Qe7 {[%clk 0:00:24.8]} 35. Qxe7+
{[%clk 0:00:29.6]} 35... Kxe7 {[%clk 0:00:24.6]} 36. Ng3 {[%clk 0:00:30.5]}
36... Nd7 {[%clk 0:00:19.9]} 37. Kf3 {[%clk 0:00:31]} 37... b6 {[%clk
0:00:20.2]} 38. cxb6 {[%clk 0:00:26]} 38... Nxb6 {[%clk 0:00:20.3]} 39. b3
{[%clk 0:00:26.7]} 39... a5 {[%clk 0:00:20.7]} 40. a4 {[%clk 0:00:21.7]} 40...
Nd7 {[%clk 0:00:21.2]} 41. Nh5 {[%clk 0:00:21.5]} 41... Kf7 {[%clk 0:00:18.4]}
42. Nf4 {[%clk 0:00:22.2]} 42... c5 {[%clk 0:00:19]} 43. Ke3 {[%clk 0:00:17.7]}
43... c4 {[%clk 0:00:15.7]} 44. bxc4 {[%clk 0:00:15.9]} 44... dxc4 {[%clk
0:00:16.6]} 45. Nd5 {[%clk 0:00:16.2]} 45... g6 {[%clk 0:00:10.4]} 46. Kd2
{[%clk 0:00:16.4]} 46... gxf5 {[%clk 0:00:10.7]} 47. gxf5 {[%clk 0:00:17.2]}
47... Nb8 {[%clk 0:00:10.5]} 48. Kc3 {[%clk 0:00:16.7]} 48... Nc6 {[%clk
0:00:11.1]} 49. Kxc4 {[%clk 0:00:17.3]} 49... h5 {[%clk 0:00:11.6]} 50. h4
{[%clk 0:00:17.1]} 50... Kg7 {[%clk 0:00:11.3]} 51. Kc5 {[%clk 0:00:16.2]} 51...
Nd8 {[%clk 0:00:11.1]} 52. Nf4 {[%clk 0:00:15.8]} 52... Nb7+ {[%clk 0:00:08.8]}
53. Kc6 {[%clk 0:00:13.9]} 53... Nd8+ {[%clk 0:00:09.4]} 54. Kc5 {[%clk
0:00:12.1]} 54... Nb7+ {[%clk 0:00:09.8]} 55. Kd5 {[%clk 0:00:12.3]} 55... Kf7
{[%clk 0:00:09.7]} 56. Nxh5 {[%clk 0:00:12.5]} 56... Nd8 {[%clk 0:00:10.3]} 57.
Nf4 {[%clk 0:00:12.9]} 57... Nb7 {[%clk 0:00:10.9]} 58. h5 {[%clk 0:00:13.2]}
58... Kg7 {[%clk 0:00:11]} 59. Ne6+ {[%clk 0:00:12.6]} 59... Kh6 {[%clk
0:00:11.2]} 60. Kc6 {[%clk 0:00:13.5]} 60... Kxh5 {[%clk 0:00:10.3]} 61. Kxb7
{[%clk 0:00:13.5]} 61... Kg4 {[%clk 0:00:11.2]} 62. Ng7 {[%clk 0:00:11.4]} 1-0

[Event "Early-Titled-Tuesday-Blitz-March-05-2024"]
[Site "Chess.com"]
[Date "2024.03.05"]
[Round "2"]
[White "Lady_Nika"]
[Black "BashirliSaadat"]
[Result "0-1"]
[WhiteElo "2556"]
[BlackElo "2358"]
[TimeControl "180+1"]
[EndTime "8:19:14 PST"]
[Termination "BashirliSaadat won by checkmate"]

1. b3 {[%clk 0:02:55.7]} 1... d5 {[%clk 0:02:59.2]} 2. Bb2 {[%clk 0:02:55.4]}
2... Nf6 {[%clk 0:02:58.9]} 3. d3 {[%clk 0:02:54.2]} 3... Bf5 {[%clk 0:02:57.3]}
4. Nd2 {[%clk 0:02:54.3]} 4... e6 {[%clk 0:02:56.6]} 5. g3 {[%clk 0:02:54.6]}
5... c6 {[%clk 0:02:55.7]} 6. Bg2 {[%clk 0:02:55]} 6... Nbd7 {[%clk 0:02:53.7]}
7. Ngf3 {[%clk 0:02:55.2]} 7... Be7 {[%clk 0:02:49.4]} 8. O-O {[%clk 0:02:54.7]}
8... O-O {[%clk 0:02:49.8]} 9. Re1 {[%clk 0:02:54.9]} 9... Re8 {[%clk
0:02:45.9]} 10. e4 {[%clk 0:02:54.8]} 10... dxe4 {[%clk 0:02:45.6]} 11. dxe4
{[%clk 0:02:55.2]} 11... Bg6 {[%clk 0:02:46.1]} 12. e5 {[%clk 0:02:53.9]} 12...
Nd5 {[%clk 0:02:45.4]} 13. a3 {[%clk 0:02:53.9]} 13... Nc5 {[%clk 0:02:40.6]}
14. Nf1 {[%clk 0:02:35.3]} 14... Qc7 {[%clk 0:02:36.5]} 15. Ne3 {[%clk
0:02:32.9]} 15... Rad8 {[%clk 0:02:32.3]} 16. Nxd5 {[%clk 0:02:30.4]} 16... Rxd5
{[%clk 0:02:31.2]} 17. Qe2 {[%clk 0:02:29.4]} 17... Red8 {[%clk 0:02:22.5]} 18.
Bc1 {[%clk 0:02:16.8]} 18... Ne4 {[%clk 0:02:14.7]} 19. Bb2 {[%clk 0:02:04.7]}
19... Bc5 {[%clk 0:02:11.4]} 20. Rf1 {[%clk 0:01:54]} 20... Rd2 {[%clk
0:01:29.8]} 21. Nxd2 {[%clk 0:01:51.3]} 21... Rxd2 {[%clk 0:01:29.8]} 22. Qe1
{[%clk 0:01:37.7]} 22... Rxf2 {[%clk 0:01:12.3]} 23. Rxf2 {[%clk 0:01:22.5]}
23... Bxf2+ {[%clk 0:01:10.9]} 24. Qxf2 {[%clk 0:01:22.7]} 24... Nxf2 {[%clk
0:01:11]} 25. Kxf2 {[%clk 0:01:23.2]} 25... Qb6+ {[%clk 0:01:10.5]} 26. Kf1
{[%clk 0:01:15]} 26... Bxc2 {[%clk 0:01:10.1]} 27. b4 {[%clk 0:01:08]} 27...
Qb5+ {[%clk 0:01:08.6]} 28. Kg1 {[%clk 0:01:07.1]} 28... Qe2 {[%clk 0:01:06.3]}
29. Rf1 {[%clk 0:00:55.3]} 29... Bd3 {[%clk 0:00:59.9]} 30. Bc1 {[%clk
0:00:52.2]} 30... Be4 {[%clk 0:00:51.5]} 31. Bxe4 {[%clk 0:00:50.9]} 31... Qxe4
{[%clk 0:00:51.7]} 32. Rd1 {[%clk 0:00:51]} 32... h6 {[%clk 0:00:47.8]} 33. Rd8+
{[%clk 0:00:48.2]} 33... Kh7 {[%clk 0:00:47.9]} 34. Bf4 {[%clk 0:00:45]} 34...
Qb1+ {[%clk 0:00:45.3]} 35. Kg2 {[%clk 0:00:43.5]} 35... Qb2+ {[%clk 0:00:45.7]}
36. Rd2 {[%clk 0:00:38]} 36... Qxa3 {[%clk 0:00:44.9]} 37. h4 {[%clk 0:00:36.3]}
37... Qxb4 {[%clk 0:00:42.9]} 38. Rd7 {[%clk 0:00:36.3]} 38... Qe4+ {[%clk
0:00:36.3]} 39. Kh2 {[%clk 0:00:36.4]} 39... c5 {[%clk 0:00:30.4]} 40. Rxf7
{[%clk 0:00:36.1]} 40... c4 {[%clk 0:00:25.5]} 41. Rc7 {[%clk 0:00:32.6]} 41...
a5 {[%clk 0:00:24.4]} 42. Rc5 {[%clk 0:00:22.8]} 42... a4 {[%clk 0:00:21.5]} 43.
Ra5 {[%clk 0:00:20.9]} 43... c3 {[%clk 0:00:21.5]} 44. h5 {[%clk 0:00:11.7]}
44... c2 {[%clk 0:00:18.6]} 45. Ra7 {[%clk 0:00:11.4]} 45... Qe2+ {[%clk
0:00:16.8]} 46. Kh3 {[%clk 0:00:11.3]} 46... Qb5 {[%clk 0:00:16.3]} 47. Ra8
{[%clk 0:00:09]} 47... Qb1 {[%clk 0:00:13.7]} 48. Kg4 {[%clk 0:00:07.2]} 48...
c1=Q {[%clk 0:00:12.4]} 49. Bxc1 {[%clk 0:00:07]} 49... Qxc1 {[%clk 0:00:12.3]}
50. Rxa4 {[%clk 0:00:07]} 50... Qg5+ {[%clk 0:00:11.9]} 51. Kh3 {[%clk
0:00:06.9]} 51... Qxh5+ {[%clk 0:00:12.1]} 52. Rh4 {[%clk 0:00:07.8]} 52... Qxe5
{[%clk 0:00:12.5]} 53. Rb4 {[%clk 0:00:07.2]} 53... Qf5+ {[%clk 0:00:12.6]} 54.
g4 {[%clk 0:00:07.1]} 54... Qf3+ {[%clk 0:00:12.2]} 55. Kh4 {[%clk 0:00:06.2]}
55... g5+ {[%clk 0:00:12.2]} 56. Kh5 {[%clk 0:00:06.6]} 56... Qh3# {[%clk
0:00:12.9]} 0-1

[Event "Early-Titled-Tuesday-Blitz-March-05-2024"]
[Site "Chess.com"]
[Date "2024.03.05"]
[Round "2"]
[White "Szparu"]
[Black "ivanquiroga"]
[Result "0-1"]
[WhiteElo "2769"]
[BlackElo "2552"]
[TimeControl "180+1"]
[EndTime "8:19:15 PST"]
[Termination "ivanquiroga won by checkmate"]

1. e4 {[%clk 0:03:00.9]} 1... e5 {[%clk 0:02:58.9]} 2. Nc3 {[%clk 0:02:56.8]}
2... Nc6 {[%clk 0:02:59]} 3. Bc4 {[%clk 0:02:55.9]} 3... Nf6 {[%clk 0:02:59]} 4.
d3 {[%clk 0:02:56]} 4... Na5 {[%clk 0:02:59.1]} 5. Nge2 {[%clk 0:02:53.1]} 5...
Be7 {[%clk 0:02:57.3]} 6. O-O {[%clk 0:02:52.8]} 6... Nxc4 {[%clk 0:02:56.9]} 7.
dxc4 {[%clk 0:02:53]} 7... d6 {[%clk 0:02:56.6]} 8. Qd3 {[%clk 0:02:53.6]} 8...
O-O {[%clk 0:02:33.4]} 9. h3 {[%clk 0:02:53.7]} 9... Be6 {[%clk 0:02:26.2]} 10.
b3 {[%clk 0:02:53.5]} 10... Nd7 {[%clk 0:02:23.5]} 11. Be3 {[%clk 0:02:53.7]}
11... Kh8 {[%clk 0:02:17.4]} 12. Rad1 {[%clk 0:02:50.6]} 12... f5 {[%clk
0:02:15.3]} 13. exf5 {[%clk 0:02:50.9]} 13... Bxf5 {[%clk 0:02:15.3]} 14. Qd2
{[%clk 0:02:51.2]} 14... c6 {[%clk 0:02:01.9]} 15. Ng3 {[%clk 0:02:51.3]} 15...
Bg6 {[%clk 0:02:00.4]} 16. Nge4 {[%clk 0:02:51.3]} 16... Nf6 {[%clk 0:01:41.1]}
17. Nxd6 {[%clk 0:02:50.8]} 17... Bxd6 {[%clk 0:01:39.9]} 18. Qxd6 {[%clk
0:02:51.7]} 18... Qxd6 {[%clk 0:01:40.3]} 19. Rxd6 {[%clk 0:02:52.5]} 19... Bxc2
{[%clk 0:01:40.9]} 20. Re6 {[%clk 0:02:48.1]} 20... e4 {[%clk 0:01:40.1]} 21.
Bd4 {[%clk 0:02:44.9]} 21... Rae8 {[%clk 0:01:31.8]} 22. Rxe8 {[%clk 0:02:42.7]}
22... Rxe8 {[%clk 0:01:31]} 23. Bxa7 {[%clk 0:02:43.2]} 23... Rd8 {[%clk
0:01:25.1]} 24. Rc1 {[%clk 0:02:43.3]} 24... Bd3 {[%clk 0:01:22.5]} 25. Rd1
{[%clk 0:02:41]} 25... Rd7 {[%clk 0:01:20.7]} 26. Bb8 {[%clk 0:02:38.4]} 26...
Kg8 {[%clk 0:01:15.8]} 27. Be5 {[%clk 0:02:38.3]} 27... Bc2 {[%clk 0:01:13.2]}
28. Re1 {[%clk 0:02:24.9]} 28... Re7 {[%clk 0:01:06.8]} 29. Bd4 {[%clk
0:02:20.2]} 29... Kf7 {[%clk 0:01:06.1]} 30. g4 {[%clk 0:02:17.9]} 30... h6
{[%clk 0:01:05.6]} 31. Kg2 {[%clk 0:02:17.6]} 31... Bd3 {[%clk 0:01:04.8]} 32.
Kg3 {[%clk 0:02:17.4]} 32... g5 {[%clk 0:01:01.9]} 33. Na4 {[%clk 0:02:17.3]}
33... Nd7 {[%clk 0:00:53]} 34. Nb2 {[%clk 0:02:11.4]} 34... Bc2 {[%clk
0:00:44.4]} 35. Re2 {[%clk 0:02:09.2]} 35... Bb1 {[%clk 0:00:44.3]} 36. Na4
{[%clk 0:02:03.1]} 36... b5 {[%clk 0:00:42.9]} 37. cxb5 {[%clk 0:02:00.8]} 37...
cxb5 {[%clk 0:00:43.8]} 38. Nc3 {[%clk 0:02:00.5]} 38... Bd3 {[%clk 0:00:44.4]}
39. Re3 {[%clk 0:02:00.2]} 39... Re6 {[%clk 0:00:37.6]} 40. f4 {[%clk
0:01:45.8]} 40... Rd6 {[%clk 0:00:33]} 41. Be5 {[%clk 0:01:46.3]} 41... Nxe5
{[%clk 0:00:30.2]} 42. fxe5 {[%clk 0:01:47.2]} 42... Re6 {[%clk 0:00:27.7]} 43.
Nxe4 {[%clk 0:01:46.6]} 43... Rxe5 {[%clk 0:00:24.2]} 44. Nd6+ {[%clk
0:01:42.9]} 44... Ke6 {[%clk 0:00:24.3]} 45. Rxe5+ {[%clk 0:01:43.2]} 45... Kxe5
{[%clk 0:00:25.2]} 46. Nf7+ {[%clk 0:01:43.8]} 46... Kf6 {[%clk 0:00:21.8]} 47.
Nd8 {[%clk 0:01:23.8]} 47... Be4 {[%clk 0:00:20.5]} 48. a4 {[%clk 0:01:05.3]}
48... b4 {[%clk 0:00:16.1]} 49. a5 {[%clk 0:00:33.1]} 49... Ke7 {[%clk 0:00:16]}
50. h4 {[%clk 0:00:31.3]} 50... Kxd8 {[%clk 0:00:11.7]} 51. hxg5 {[%clk
0:00:31.7]} 51... hxg5 {[%clk 0:00:12.6]} 52. Kf2 {[%clk 0:00:32.3]} 52... Bc2
{[%clk 0:00:09]} 53. Ke3 {[%clk 0:00:33.2]} 53... Bxb3 {[%clk 0:00:09.1]} 54.
Kd4 {[%clk 0:00:33.9]} 54... Be6 {[%clk 0:00:07.8]} 55. Ke5 {[%clk 0:00:33.2]}
55... Bxg4 {[%clk 0:00:05.6]} 56. Kf6 {[%clk 0:00:32.6]} 56... b3 {[%clk
0:00:04.9]} 57. Kxg5 {[%clk 0:00:32.9]} 57... Bf3 {[%clk 0:00:05.4]} 58. Kf4
{[%clk 0:00:33]} 58... Ba8 {[%clk 0:00:06.3]} 59. Ke3 {[%clk 0:00:28.5]} 59...
b2 {[%clk 0:00:07.2]} 60. Kd2 {[%clk 0:00:28.7]} 60... b1=Q {[%clk 0:00:08.1]}
61. Kc3 {[%clk 0:00:29]} 61... Qb5 {[%clk 0:00:08.2]} 62. Kd4 {[%clk 0:00:29.5]}
62... Qxa5 {[%clk 0:00:08.6]} 63. Ke3 {[%clk 0:00:30.1]} 63... Qd5 {[%clk
0:00:09.1]} 64. Kf2 {[%clk 0:00:30.7]} 64... Kd7 {[%clk 0:00:09.8]} 65. Kg3
{[%clk 0:00:31]} 65... Kd6 {[%clk 0:00:10.4]} 66. Kf4 {[%clk 0:00:31]} 66... Bb7
{[%clk 0:00:11]} 67. Kg4 {[%clk 0:00:30.9]} 67... Ba6 {[%clk 0:00:11.7]} 68. Kf4
{[%clk 0:00:31.5]} 68... Qe5+ {[%clk 0:00:12.2]} 69. Kf3 {[%clk 0:00:31.9]}
69... Ke6 {[%clk 0:00:12.4]} 70. Kf2 {[%clk 0:00:32.6]} 70... Qe4 {[%clk
0:00:12.2]} 71. Kg3 {[%clk 0:00:32.9]} 71... Kf5 {[%clk 0:00:12]} 72. Kf2 {[%clk
0:00:33.3]} 72... Kf4 {[%clk 0:00:11.7]} 73. Kg1 {[%clk 0:00:33.6]} 73... Qe2
{[%clk 0:00:11.2]} 74. Kh1 {[%clk 0:00:33.7]} 74... Bb7+ {[%clk 0:00:11.5]} 75.
Kg1 {[%clk 0:00:34.1]} 75... Qg2# {[%clk 0:00:11.7]} 0-1

[Event "Early-Titled-Tuesday-Blitz-March-05-2024"]
[Site "Chess.com"]
[Date "2024.03.05"]
[Round "2"]
[White "DanielTitichoca"]
[Black "ahkashefi2800"]
[Result "0-1"]
[WhiteElo "2372"]
[BlackElo "2633"]
[TimeControl "180+1"]
[EndTime "8:19:19 PST"]
[Termination "ahkashefi2800 won by checkmate"]

1. c4 {[%clk 0:02:54.2]} 1... c6 {[%clk 0:02:57.6]} 2. Nf3 {[%clk 0:02:53.2]}
2... d5 {[%clk 0:02:57.1]} 3. e3 {[%clk 0:02:54.1]} 3... Nf6 {[%clk 0:02:56]} 4.
Nc3 {[%clk 0:02:52.8]} 4... Bg4 {[%clk 0:02:54.9]} 5. Qb3 {[%clk 0:02:50.6]}
5... Qb6 {[%clk 0:02:54.3]} 6. Qxb6 {[%clk 0:02:39.3]} 6... axb6 {[%clk
0:02:53.5]} 7. cxd5 {[%clk 0:02:40.2]} 7... Bxf3 {[%clk 0:02:52.8]} 8. gxf3
{[%clk 0:02:39.3]} 8... Nxd5 {[%clk 0:02:52.4]} 9. Nxd5 {[%clk 0:02:22.4]} 9...
cxd5 {[%clk 0:02:50.4]} 10. Bb5+ {[%clk 0:02:23.3]} 10... Nc6 {[%clk 0:02:50.3]}
11. b3 {[%clk 0:02:21.6]} 11... e6 {[%clk 0:02:49.5]} 12. Bb2 {[%clk 0:02:21.4]}
12... f6 {[%clk 0:02:46]} 13. Ke2 {[%clk 0:02:21.6]} 13... Bd6 {[%clk
0:02:45.3]} 14. Bd4 {[%clk 0:02:11.3]} 14... Bc5 {[%clk 0:02:43.8]} 15. Bxc5
{[%clk 0:02:10.4]} 15... bxc5 {[%clk 0:02:43.9]} 16. Rhc1 {[%clk 0:02:11.3]}
16... Ke7 {[%clk 0:02:42.1]} 17. Rxc5 {[%clk 0:02:09.7]} 17... Rhc8 {[%clk
0:02:41.6]} 18. Rac1 {[%clk 0:02:00.3]} 18... Rxa2 {[%clk 0:02:37.4]} 19. Bxc6
{[%clk 0:01:59.7]} 19... bxc6 {[%clk 0:02:36.5]} 20. Rxc6 {[%clk 0:01:59.7]}
20... Rxc6 {[%clk 0:02:33.2]} 21. Rxc6 {[%clk 0:02:00.6]} 21... Rb2 {[%clk
0:02:29.7]} 22. Rb6 {[%clk 0:01:58.8]} 22... g5 {[%clk 0:02:25]} 23. Rb7+ {[%clk
0:01:57.7]} 23... Kd6 {[%clk 0:02:22.8]} 24. b4 {[%clk 0:01:57.1]} 24... h5
{[%clk 0:02:20.8]} 25. b5 {[%clk 0:01:50.8]} 25... Kc5 {[%clk 0:02:19.2]} 26.
Rc7+ {[%clk 0:01:48.6]} 26... Kd6 {[%clk 0:02:17.1]} 27. Rb7 {[%clk 0:01:46.4]}
27... Rb3 {[%clk 0:02:16.4]} 28. b6 {[%clk 0:01:42.3]} 28... Kc5 {[%clk
0:02:14.8]} 29. Rf7 {[%clk 0:01:36.6]} 29... f5 {[%clk 0:02:02.6]} 30. b7 {[%clk
0:01:03.1]} 30... Kc6 {[%clk 0:01:58.7]} 31. Rf6 {[%clk 0:01:02.7]} 31... Kd6
{[%clk 0:01:56.8]} 32. Rh6 {[%clk 0:01:01.7]} 32... Rxb7 {[%clk 0:01:55.3]} 33.
Rxh5 {[%clk 0:01:01.7]} 33... Rg7 {[%clk 0:01:55.1]} 34. d4 {[%clk 0:00:58]}
34... Rg8 {[%clk 0:01:54.5]} 35. Kf1 {[%clk 0:00:57.4]} 35... Ke7 {[%clk
0:01:53.3]} 36. Rh7+ {[%clk 0:00:54.6]} 36... Kf6 {[%clk 0:01:53.2]} 37. Rh6+
{[%clk 0:00:55.2]} 37... Kf7 {[%clk 0:01:52.2]} 38. Kg2 {[%clk 0:00:54.5]} 38...
Ra8 {[%clk 0:01:51.5]} 39. Kg3 {[%clk 0:00:52.9]} 39... Ra1 {[%clk 0:01:50.6]}
40. Rh7+ {[%clk 0:00:52.6]} 40... Kg6 {[%clk 0:01:48.8]} 41. Re7 {[%clk
0:00:52.4]} 41... Rg1+ {[%clk 0:01:46.6]} 42. Kh3 {[%clk 0:00:52.4]} 42... Kf6
{[%clk 0:01:42.9]} 43. Re8 {[%clk 0:00:50.3]} 43... Kf7 {[%clk 0:01:43]} 44. Rh8
{[%clk 0:00:49.7]} 44... Kg6 {[%clk 0:01:42.3]} 45. f4 {[%clk 0:00:38.6]} 45...
g4+ {[%clk 0:01:39.3]} 46. Kh4 {[%clk 0:00:38.7]} 46... Rg2 {[%clk 0:01:38.8]}
47. Rg8+ {[%clk 0:00:32.4]} 47... Kh6 {[%clk 0:01:27.7]} 48. Re8 {[%clk
0:00:30.5]} 48... Rxf2 {[%clk 0:01:21.2]} 49. Rxe6+ {[%clk 0:00:29.3]} 49... Kg7
{[%clk 0:01:21.2]} 50. Kg3 {[%clk 0:00:25.1]} 50... Rf3+ {[%clk 0:01:18.8]} 51.
Kg2 {[%clk 0:00:25.7]} 51... Kf7 {[%clk 0:01:17.4]} 52. Re5 {[%clk 0:00:25.8]}
52... Kf6 {[%clk 0:01:17.6]} 53. Rxd5 {[%clk 0:00:23.3]} 53... Rxe3 {[%clk
0:01:17.7]} 54. Rd6+ {[%clk 0:00:24]} 54... Ke7 {[%clk 0:01:16.7]} 55. Rd5
{[%clk 0:00:23.7]} 55... Kf6 {[%clk 0:01:16.2]} 56. Re5 {[%clk 0:00:20.1]} 56...
Rf3 {[%clk 0:01:15.4]} 57. d5 {[%clk 0:00:16.4]} 57... Rxf4 {[%clk 0:01:15.6]}
58. Re6+ {[%clk 0:00:17.1]} 58... Kg5 {[%clk 0:01:15.9]} 59. d6 {[%clk
0:00:15.9]} 59... Rd4 {[%clk 0:01:16]} 60. Kg3 {[%clk 0:00:15.9]} 60... Rd2
{[%clk 0:01:15.2]} 61. h4+ {[%clk 0:00:15.1]} 61... gxh3 {[%clk 0:01:10.3]} 62.
Kxh3 {[%clk 0:00:15.1]} 62... Kf4 {[%clk 0:01:10.4]} 63. Rg6 {[%clk 0:00:10]}
63... Kf3 {[%clk 0:01:07.9]} 64. Rg3+ {[%clk 0:00:09]} 64... Ke4 {[%clk
0:01:08.2]} 65. Rg6 {[%clk 0:00:09.6]} 65... f4 {[%clk 0:01:08.3]} 66. Kg4
{[%clk 0:00:07.3]} 66... Rg2+ {[%clk 0:01:07.6]} 67. Kh5 {[%clk 0:00:07.6]}
67... Rd2 {[%clk 0:01:07.7]} 68. Kg4 {[%clk 0:00:07.2]} 68... Rg2+ {[%clk
0:01:05.6]} 69. Kh5 {[%clk 0:00:07.2]} 69... f3 {[%clk 0:01:05.6]} 70. d7 {[%clk
0:00:04.3]} 70... Rd2 {[%clk 0:01:01.3]} 71. Re6+ {[%clk 0:00:04.3]} 71... Kf5
{[%clk 0:01:01.4]} 72. Re7 {[%clk 0:00:02.4]} 72... Rh2# {[%clk 0:00:59.5]} 0-1